fUSD/lending_fUSD_20240817
["ID","MTS","AMOUNT","RATE_DAILY","PERIOD"]
[335130411,1723878642202,-500.0,0.00010684,2]
[335130412,1723878642212,-500.0,0.00010684,2]
[335130413,1723878642222,-500.0,0.00010684,2]
[335130414,1723878642231,-500.0,0.00010684,2]
[335130415,1723878642241,-516.50585061,0.00010684,2]
[335130416,1723878642250,-500.0,0.00010684,2]
[335130417,1723878642259,-262.11912456,0.00010684,2]
[335130418,1723878642270,-500.0,0.00010684,2]
[335130419,1723878642280,-500.0,0.00010684,2]
[335130420,1723878642290,-500.0,0.00010684,2]
[335130421,1723878642299,-500.0,0.00010684,2]
[335130422,1723878642308,-500.0,0.00010684,2]
[335130423,1723878642318,-500.0,0.00010684,2]
[335130424,1723878642327,-500.0,0.00010684,2]
[335130425,1723878642336,-500.0,0.00010684,2]
[335130426,1723878642346,-500.0,0.00010684,2]
[335130427,1723878642356,-500.0,0.00010684,2]
[335130428,1723878642366,-500.0,0.00010684,2]
[335130429,1723878642375,-500.0,0.00010684,2]
[335130430,1723878642385,-500.0,0.00010684,2]
[335130431,1723878642394,-500.0,0.00010684,2]
[335130432,1723878642403,-500.0,0.00010684,2]
[335130433,1723878642412,-500.0,0.00010684,2]
[335130434,1723878642422,-500.0,0.00010684,2]
[335130435,1723878642432,-500.0,0.00010684,2]
[335130436,1723878642442,-500.0,0.00010684,2]
[335130437,1723878642452,-500.0,0.00010684,2]
[335130438,1723878642461,-160.58357524,0.00010684,2]
[335130439,1723878642471,-580.49883142,0.00010684,2]
[335130440,1723878642481,-154.99646748,0.00010684,2]
[335130441,1723878642490,-500.0,0.00010684,2]
[335130442,1723878642501,-500.0,0.00010684,2]
[335130443,1723878642510,-500.0,0.00010684,2]
[335130444,1723878642520,-500.0,0.00010684,2]
[335130445,1723878642530,-500.0,0.00010684,2]
[335130446,1723878642539,-500.0,0.00010684,2]
[335130447,1723878642549,-500.0,0.00010684,2]
[335130448,1723878642559,-500.0,0.00010684,2]
[335130449,1723878642568,-500.0,0.00010684,2]
[335130450,1723878642577,-493.70169565,0.00010684,2]
[335130451,1723878642587,-500.0,0.00010684,2]
[335130452,1723878642596,-516.24197801,0.00010684,2]
[335130453,1723878642606,-500.0,0.00010684,2]
[335130454,1723878642616,-500.0,0.00010684,2]
[335130455,1723878642626,-500.0,0.00010684,2]
[335130456,1723878642635,-641.30265054,0.00010684,2]
[335130457,1723878642645,-648.78274157,0.00010684,2]
[335130458,1723878642655,-521.76422415,0.00010684,2]
[335130459,1723878642664,-500.0,0.00010684,2]
[335130460,1723878642673,-500.0,0.00010684,2]
[335130461,1723878642684,-513.62038796,0.00010684,2]
[335130462,1723878642694,-500.0,0.00010684,2]
[335130463,1723878642703,-505.83879902,0.00010684,2]
[335130464,1723878642713,-500.0,0.00010684,2]
[335130465,1723878642722,-500.0,0.00010684,2]
[335130466,1723878642732,-500.0,0.00010684,2]
[335130467,1723878642741,-500.0,0.00010684,2]
[335130468,1723878642751,-500.0,0.00010684,2]
[335130469,1723878642760,-500.0,0.00010684,2]
[335130470,1723878642770,-500.0,0.00010684,2]
[335130471,1723878642779,-500.0,0.00010684,2]
[335130472,1723878642788,-500.0,0.00010684,2]
[335130473,1723878642798,-500.0,0.00010684,2]
[335130474,1723878642808,-396.31101614,0.00010684,2]
[335130475,1723878642817,-500.0,0.00010684,2]
[335130476,1723878642827,-500.0,0.00010684,2]
[335130477,1723878642836,-500.0,0.00010684,2]
[335130478,1723878642846,-279.62496763,0.00010684,2]
[335130479,1723878642855,-500.0,0.00010684,2]
[335130480,1723878642865,-262.26285286,0.00010684,2]
[335130481,1723878642874,-500.0,0.00010684,2]
[335130482,1723878642883,-507.54963901,0.00010684,2]
[335130483,1723878642893,-500.0,0.00010684,2]
[335130484,1723878642902,-500.0,0.00010684,2]
[335130485,1723878642912,-500.0,0.00010684,2]
[335130486,1723878642922,-500.0,0.00010684,2]
[335130487,1723878642933,-500.0,0.00010684,2]
[335130488,1723878642943,-500.0,0.00010684,2]
[335130489,1723878642953,-500.0,0.00010684,2]
[335130490,1723878642963,-500.0,0.00010684,2]
[335130491,1723878642972,-500.0,0.00010684,2]
[335130492,1723878642982,-500.0,0.00010684,2]
[335130493,1723878642991,-500.0,0.00010684,2]
[335130494,1723878643001,-485.14368571,0.00010684,2]
[335130495,1723878643010,-505.20275671,0.00010684,2]
[335130496,1723878643020,-500.0,0.00010684,2]
[335130497,1723878643029,-500.0,0.00010684,2]
[335130498,1723878643038,-500.0,0.00010684,2]
[335130499,1723878643047,-531.52104704,0.00010684,2]
[335130500,1723878643057,-520.69425856,0.00010684,2]
[335130501,1723878643066,-500.0,0.00010684,2]
[335130502,1723878643075,-500.0,0.00010684,2]
[335130503,1723878643084,-500.0,0.00010684,2]
[335130504,1723878643094,-502.19852805,0.00010684,2]
[335130505,1723878643103,-500.0,0.00010684,2]
[335130506,1723878643113,-500.0,0.00010684,2]
[335130507,1723878643123,-496.75017861,0.00010684,2]
[335130508,1723878643133,-227.03669649,0.00010684,2]
[335130509,1723878643142,-500.0,0.00010684,2]
[335130510,1723878643151,-500.0,0.00010684,2]
[335130511,1723878643161,-500.0,0.00010684,2]
[335130512,1723878643170,-500.0,0.00010684,2]
[335130513,1723878643180,-459.12,0.00010684,2]
[335130514,1723878643193,-500.0,0.00010684,2]
[335130515,1723878643202,-500.0,0.00010684,2]
[335130516,1723878643211,-500.0,0.00010684,2]
[335130517,1723878643220,-500.0,0.00010684,2]
[335130518,1723878643230,-500.0,0.00010684,2]
[335130519,1723878643239,-500.0,0.00010684,2]
[335130520,1723878643248,-1990.3,0.00010684,2]
[335130521,1723878643257,-500.0,0.00010684,2]
[335130522,1723878643267,-1990.3,0.00010684,2]
[335130523,1723878643276,-500.0,0.00010684,2]
[335130524,1723878643285,-1990.3,0.00010684,2]
[335130525,1723878643295,-502.43,0.00010684,2]
[335130526,1723878643304,-502.43,0.00010684,2]
[335130527,1723878643313,-502.43,0.00010684,2]
[335130529,1723878643322,-502.43,0.00010684,2]
[335130530,1723878643332,-502.43,0.00010684,2]
[335130531,1723878643341,-502.43,0.00010684,2]
[335130532,1723878643353,-500.0,0.00010684,2]
[335130533,1723878643363,-500.0,0.00010684,2]
[335130534,1723878643372,-500.0,0.00010684,2]
[335130535,1723878643381,-500.0,0.00010684,2]
[335130536,1723878643390,-500.0,0.00010684,2]
[335130537,1723878643399,-500.0,0.00010684,2]
[335130538,1723878643409,-500.0,0.00010684,2]
[335130539,1723878643418,-500.0,0.00010684,2]
[335130540,1723878643428,-1881.09,0.00010684,2]
[335130541,1723878643440,-1881.09,0.00010684,2]
[335130542,1723878643455,-1881.09,0.00010684,2]
[335130543,1723878643465,-500.0,0.00010684,2]
[335130544,1723878643475,-500.0,0.00010684,2]
[335130545,1723878643485,-500.0,0.00010684,2]
[335130546,1723878643494,-500.0,0.00010684,2]
[335130547,1723878643504,-3781.69,0.00010684,2]
[335130548,1723878643513,-503.41236184,0.00010684,2]
[335130549,1723878643523,-3781.69,0.00010684,2]
[335130550,1723878643747,-3781.69,0.00010684,2]
[335130551,1723878643758,-1615.44,0.00010684,2]
[335130552,1723878643768,-1615.44,0.00010684,2]
[335130553,1723878643777,-1615.44,0.00010684,2]
[335130554,1723878643786,-1615.44,0.00010684,2]
[335130555,1723878643796,-1615.44,0.00010684,2]
[335130556,1723878643805,-1615.44,0.00010684,2]
[335130557,1723878643815,-1615.44,0.00010684,2]
[335130558,1723878643824,-1615.44,0.00010684,2]
[335130559,1723878643834,-500.0,0.00010684,2]
[335130560,1723878643843,-500.0,0.00010684,2]
[335130561,1723878643853,-500.0,0.00010684,2]
[335130562,1723878643862,-600.49100657,0.00010684,2]
[335130563,1723878643872,-500.0,0.00010684,2]
[335130564,1723878643881,-500.0,0.00010684,2]
[335130565,1723878643891,-500.0,0.00010684,2]
[335130566,1723878643900,-500.0,0.00010684,2]
[335130567,1723878643910,-1470.85,0.00010684,2]
[335130568,1723878643919,-540.17,0.00010684,2]
[335130569,1723878643929,-1470.85,0.00010684,2]
[335130570,1723878643941,-540.17,0.00010684,2]
[335130571,1723878643951,-1470.85,0.00010684,2]
[335130572,1723878643960,-4358.31,0.00010684,2]
[335130573,1723878643970,-4358.31,0.00010684,2]
[335130574,1723878643980,-4358.31,0.00010684,2]
[335130575,1723878643989,-500.0,0.00010684,2]
[335130576,1723878643999,-500.0,0.00010684,2]
[335130577,1723878644008,-3086.35,0.00010684,2]
[335130578,1723878644018,-500.0,0.00010684,2]
[335130579,1723878644028,-3086.35,0.00010684,2]
[335130580,1723878644037,-3086.35,0.00010684,2]
[335130581,1723878644047,-500.0,0.00010684,2]
[335130582,1723878644056,-500.0,0.00010684,2]
[335130583,1723878644066,-1657.41,0.00010684,2]
[335130584,1723878644076,-1657.41,0.00010684,2]
[335130585,1723878644085,-1657.41,0.00010684,2]
[335130586,1723878644095,-1657.41,0.00010684,2]
[335130587,1723878644104,-1657.41,0.00010684,2]
[335130588,1723878644117,-1657.41,0.00010684,2]
[335130589,1723878644126,-571.27103573,0.00010684,2]
[335130590,1723878644136,-3157.35,0.00010684,2]
[335130591,1723878644146,-3157.35,0.00010684,2]
[335130592,1723878644156,-3157.35,0.00010684,2]
[335130593,1723878644165,-1299.23,0.00010684,2]
[335130594,1723878644174,-1299.23,0.00010684,2]
[335130595,1723878644184,-500.0,0.00010684,2]
[335130596,1723878644198,-500.0,0.00010684,2]
[335130597,1723878644209,-500.0,0.00010684,2]
[335130598,1723878644220,-500.0,0.00010684,2]
[335130599,1723878644230,-500.0,0.00010684,2]
[335130600,1723878644242,-537.19416929,0.00010684,2]
[335130601,1723878644253,-510.78,0.00010684,2]
[335130602,1723878644265,-500.0,0.00010684,2]
[335130603,1723878644276,-510.78,0.00010684,2]
[335130604,1723878644286,-500.0,0.00010684,2]
[335130605,1723878644297,-500.0,0.00010684,2]
[335130606,1723878644307,-500.0,0.00010684,2]
[335130607,1723878644317,-500.0,0.00010684,2]
[335130608,1723878644327,-1752.63,0.00010684,2]
[335130609,1723878644337,-1752.63,0.00010684,2]
[335130610,1723878644346,-1752.63,0.00010684,2]
[335130611,1723878644356,-1239.88,0.00010684,2]
[335130612,1723878644365,-1239.88,0.00010684,2]
[335130613,1723878644375,-1239.88,0.00010684,2]
[335130614,1723878644385,-1239.88,0.00010684,2]
[335130615,1723878644395,-1239.88,0.00010684,2]
[335130616,1723878644405,-1239.88,0.00010684,2]
[335130617,1723878644414,-500.0,0.00010684,2]
[335130618,1723878644423,-500.0,0.00010684,2]
[335130619,1723878644437,-1031.28,0.00010684,2]
[335130621,1723878644447,-1031.28,0.00010684,2]
[335130622,1723878644457,-1031.28,0.00010684,2]
[335130623,1723878644467,-500.0,0.00010684,2]
[335130624,1723878644477,-500.0,0.00010684,2]
[335130625,1723878644486,-2462.84,0.00010684,2]
[335130626,1723878644496,-2462.84,0.00010684,2]
[335130627,1723878644506,-1381.49955948,0.00010684,2]
[335130628,1723878644546,-278.06168184,0.00010684,2]
[335130629,1723878644558,-803.27875868,0.00010684,2]
[335130630,1723878644568,-27.9668952,0.00010684,2]
[335130644,1723878645152,-2434.8731048,0.00010684,2]
[335130645,1723878645162,-489.19210226,0.00010684,2]
[335130658,1723878646526,-519.0,0.00010684,2]
[335130659,1723878646536,-1973.64789774,0.00010684,2]
[335130660,1723878646546,-2462.84,0.00010684,2]
[335130661,1723878646555,-1522.02,0.00010684,2]
[335130662,1723878646565,-1522.02,0.00010684,2]
[335130663,1723878646574,-1522.02,0.00010684,2]
[335130664,1723878646584,-196.36924274,0.00010684,2]
[335130665,1723878646594,-500.0,0.00010684,2]
[335130666,1723878646603,-500.0,0.00010684,2]
[335130667,1723878646613,-500.0,0.00010684,2]
[335130668,1723878646622,-500.0,0.00010684,2]
[335130669,1723878646631,-500.0,0.00010684,2]
[335130670,1723878646641,-500.0,0.00010684,2]
[335130671,1723878646650,-1094.39,0.00010684,2]
[335130672,1723878646660,-500.0,0.00010684,2]
[335130673,1723878646669,-500.0,0.00010684,2]
[335130674,1723878646679,-1094.39,0.00010684,2]
[335130675,1723878646688,-164.59168564,0.00010684,2]
[335130676,1723878646698,-1094.39,0.00010684,2]
[335130677,1723878646708,-500.0,0.00010684,2]
[335130678,1723878646717,-101.89820877,0.00010684,2]
[335130687,1723878660039,378.04,9.866e-05,2]
[335130688,1723878669848,800.0,9.9e-05,3]
[335130689,1723878769481,155.0,9.9e-05,2]
[335130690,1723878773598,737.6,9.643e-05,2]
[335130691,1723878805510,154.86,8.219e-05,2]
[335130694,1723879079654,325.33,9.623e-05,2]
[335130696,1723879116678,305.09069326,9.962e-05,2]
[335130697,1723879124522,155.39875726,9.943e-05,2]
[335130698,1723879230045,409.92,9.624e-05,2]
[335130699,1723879242396,295.68069646,9.926e-05,2]
[335130700,1723879355361,154.86,8.219e-05,2]
[335130701,1723879400283,157.06540395,9.943e-05,2]
[335130702,1723879549219,174.67,9.637e-05,2]
[335130708,1723879627990,255.21992957,9.943e-05,2]
[335130719,1723879643524,700.0,9.9e-05,3]
[335130721,1723879673139,303.83337268,9.943e-05,2]
[335130722,1723879735047,672.06,9.553e-05,2]
[335130733,1723879775422,628.95048865,9.943e-05,2]
[335130742,1723879831554,-650.01824345,0.0001,2]
[335130744,1723879831564,-1500.0,0.0001,3]
[335130746,1723879831574,-1724.55584436,0.0001,2]
[335130748,1723879831583,-2300.0,0.000101,3]
[335130749,1723879831593,-3100.0,0.000102,3]
[335130750,1723879831603,-300.0,0.00010299,2]
[335130751,1723879831613,-3800.0,0.000103,3]
[335130752,1723879831623,-700.0,0.000104,3]
[335130753,1723879831632,-152.59029434,0.00010445,2]
[335130754,1723879831641,-150.0,0.00010446,2]
[335130755,1723879831651,-8431.68970785,0.00010449,2]
[335130756,1723879831662,-1057.3,0.00010449,2]
[335130757,1723879831743,-551.46904425,0.00010449,2]
[335130758,1723879831755,-723.47099486,0.00010449,2]
[335130759,1723879831765,-2914.96843043,0.0001045,2]
[335130760,1723879831777,-538.88,0.0001045,2]
[335130761,1723879831800,-4931.33654972,0.0001045,2]
[335130782,1723879837613,-448.7075297,0.0001045,2]
[335130783,1723879837624,-1675.42648451,0.0001045,2]
[335130784,1723879837635,-24499.0777336,0.0001045,2]
[335130785,1723879837646,-9713.3724885,0.0001045,2]
[335130786,1723879837657,-10304.84187847,0.0001045,2]
[335130787,1723879837670,-1383.27928817,0.0001045,2]
[335130788,1723879837681,-394.12782113,0.0001045,2]
[335130789,1723879837702,-4891.56409577,0.0001045,2]
[335130790,1723879837920,-167.98447113,0.0001045,2]
[335130791,1723879837932,-8284.18896675,0.0001045,2]
[335130792,1723879837945,-585.41820824,0.0001045,2]
[335130793,1723879837961,-2577.13024014,0.0001045,2]
[335130794,1723879837973,-777.32253201,0.0001045,2]
[335130795,1723879837987,-17607.94558173,0.0001045,2]
[335130796,1723879837999,-3327.67,0.0001045,2]
[335130797,1723879838008,-150.0,0.0001046,2]
[335130798,1723879838017,-150.0,0.00010461,2]
[335130799,1723879838027,-1074.71,0.00010461,2]
[335130800,1723879838037,-13315.43634578,0.00010461,2]
[335130801,1723879838048,-2998.77787531,0.00010461,2]
[335130802,1723879838059,-3145.52577891,0.00010461,2]
[335130803,1723879838067,-155.0,0.00010471,2]
[335130804,1723879838076,-484.83750596,0.00010471,2]
[335130805,1723879838087,-150.0,0.00010497,2]
[335130806,1723879838104,-3507.44133113,0.000105,2]
[335130827,1723879838386,-710.95025,0.000105,2]
[335130829,1723879838398,-315.06724408,0.000105,2]
[335130831,1723879838409,-534.85350744,0.000105,2]
[335130833,1723879838422,-1590.09676335,0.000105,2]
[335130835,1723879838432,-700.0,0.000105,3]
[335130837,1723879838442,-1205.0,0.000105,2]
[335130839,1723879838451,-366.12209494,0.000105,2]
[335130841,1723879838461,-150.0,0.00010502,2]
[335130843,1723879838470,-150.0,0.00010504,2]
[335130844,1723879838479,-150.0,0.00010559,2]
[335130846,1723879838488,-380.05447891,0.00010566,2]
[335130848,1723879838498,-186.87803,0.0001058,2]
[335130850,1723879838509,-1152.60396046,0.0001058,2]
[335130853,1723879838525,-1173.98706814,0.0001058,2]
[335130855,1723879838536,-3169.35211378,0.0001058,2]
[335130857,1723879838547,-1847.439928,0.0001058,2]
[335130859,1723879838558,-12767.67055929,0.0001058,2]
[335130861,1723879838569,-1296.85581001,0.0001058,2]
[335130863,1723879838579,-714.662132,0.0001058,2]
[335130865,1723879838591,-730.97428503,0.0001058,2]
[335130868,1723879838612,-9571.39362899,0.0001058,2]
[335130870,1723879838624,-503.8190057,0.0001058,2]
[335130874,1723879838649,-474.62080225,0.0001058,2]
[335130989,1723879839833,-511.43199475,0.0001058,2]
[335130991,1723879839846,-685.0591924,0.0001058,2]
[335130994,1723879839858,-520.61,0.0001058,2]
[335131007,1723879839980,-450.0,0.0001058,2]
[335131009,1723879839992,-262.23080592,0.0001058,2]
[335131194,1723879842354,-27932.77485466,0.0001058,2]
[335131196,1723879842948,-300.0,0.0001058,2]
[335131211,1723879845784,-262.23080592,0.0001058,2]
[335131212,1723879887855,154.68,8.219e-05,2]
[335131214,1723879955936,273.75917913,9.962e-05,2]
[335131215,1723880013913,250.0,9.734e-05,2]
[335131216,1723880060998,174.67,9.734e-05,2]
[335131218,1723880154242,1852.42,9.734e-05,2]
[335131219,1723880212715,462.35,9.718e-05,2]
[335131220,1723880311241,6210.76,9.686e-05,2]
[335131221,1723880348038,154.68,8.219e-05,2]
[335131222,1723880441931,155.56977377,9.962e-05,2]
[335131223,1723880522368,174.67,9.704e-05,2]
[335131224,1723880689715,630.12,9.691e-05,2]
[335131225,1723880701139,527.89234172,9.943e-05,2]
[335131226,1723880809254,155.20747074,9.943e-05,2]
[335131238,1723880849650,154.68,8.219e-05,2]
[335131275,1723880972122,270.54903608,9.962e-05,2]
[335131288,1723881031751,-550.0,0.0001,2]
[335131289,1723881031761,-288.58645643,0.00010026,2]
[335131290,1723881031770,-328.2073623,0.00010097,2]
[335131291,1723881031779,-150.0,0.00010433,2]
[335131292,1723881031789,-150.0,0.00010466,2]
[335131293,1723881031798,-224.25364,0.0001047,2]
[335131294,1723881031807,-224.25365,0.0001047,2]
[335131295,1723881031816,-224.25365,0.0001047,2]
[335131296,1723881031825,-150.0,0.00010479,2]
[335131297,1723881031836,-227.0,0.00010479,2]
[335131298,1723881031846,-4846.13394121,0.0001048,2]
[335131299,1723881031858,-2059.03725129,0.0001048,2]
[335131300,1723881031869,-621.77146932,0.0001048,2]
[335131301,1723881031880,-883.97785601,0.0001048,2]
[335131302,1723881031892,-450.25,0.0001048,2]
[335131303,1723881031906,-404.0,0.0001048,2]
[335131304,1723881031917,-677.01,0.0001048,2]
[335131305,1723881031943,-1002.293869,0.0001048,2]
[335131306,1723881031955,-995.87545876,0.0001048,2]
[335131307,1723881031965,-2350.58188948,0.0001048,2]
[335131312,1723881037664,-2631.00003904,0.0001048,2]
[335131313,1723881037769,-1879.79073718,0.0001048,2]
[335131314,1723881037781,-353.01173433,0.0001048,2]
[335131315,1723881037822,-735.25,0.0001048,2]
[335131316,1723881037875,-379.72846044,0.0001048,2]
[335131317,1723881037886,-4498.59079394,0.0001048,2]
[335131318,1723881037895,-5516.9878,0.0001048,2]
[335131319,1723881037904,-213.4549,0.0001048,2]
[335131320,1723881037912,-186.87804,0.000105,2]
[335131321,1723881037921,-1000.0,0.000105,2]
[335131322,1723881037931,-150.0,0.00010527,2]
[335131323,1723881037942,-534.22,0.00010527,2]
[335131324,1723881037953,-186.87804,0.0001054,2]
[335131325,1723881037962,-8152.57,0.00010566,2]
[335131326,1723881037971,-162.7683787,0.0001058,2]
[335131328,1723881037980,-224.25365,0.0001058,2]
[335131330,1723881037989,-224.25364,0.0001058,2]
[335131332,1723881037998,-186.87804,0.0001058,2]
[335131334,1723881038007,-186.87804,0.0001058,2]
[335131336,1723881038016,-186.87804,0.0001058,2]
[335131337,1723881038026,-9089.60276047,0.0001058,2]
[335131446,1723881125326,400.0,9.9e-05,3]
[335131447,1723881176136,400.0,9.728e-05,2]
[335131448,1723881267814,495.9,9.691e-05,2]
[335131451,1723881357575,153.95,8.219e-05,2]
[335131470,1723881603177,150.0,8.219e-05,2]
[335131471,1723881635732,200.0,9.637e-05,2]
[335131472,1723881640870,166.04,9.637e-05,2]
[335131473,1723881651266,155.0,9.943e-05,2]
[335131474,1723881720376,603.28,9.627e-05,2]
[335131475,1723881849093,153.95,8.219e-05,2]
[335131478,1723882034492,400.0,9.9e-05,3]
[335131506,1723882157629,200.0,9.612e-05,2]
[335131517,1723882231880,-550.0,0.0001,2]
[335131518,1723882231891,-800.0,0.0001,3]
[335131519,1723882231902,-1200.0,0.000101,3]
[335131520,1723882231912,-1600.0,0.000102,3]
[335131521,1723882231923,-150.0,0.00010258,2]
[335131522,1723882231933,-300.0,0.00010258,2]
[335131523,1723882231943,-52404.0,0.00010259,2]
[335131524,1723882231954,-383.4,0.00010264,2]
[335131525,1723882231964,-2100.0,0.000103,3]
[335131526,1723882231975,-11817.6928,0.0001038,2]
[335131527,1723882231986,-1000.0,0.0001038,2]
[335131528,1723882231998,-1758.3333,0.0001038,2]
[335131529,1723882232008,-167.11,0.000104,2]
[335131530,1723882232020,-150.0,0.000104,2]
[335131531,1723882232031,-150.0,0.000104,2]
[335131532,1723882232042,-400.0,0.000104,3]
[335131533,1723882232054,-3028.29,0.0001047,2]
[335131534,1723882232065,-800.68594,0.0001047,2]
[335131535,1723882232079,-67062.409,0.0001048,2]
[335131536,1723882232089,-72054.70906522,0.0001048,2]
[335131537,1723882232103,-660.81574573,0.0001048,2]
[335131538,1723882232116,-13972.11072017,0.0001048,2]
[335131539,1723882232128,-2200.00000003,0.0001048,2]
[335131540,1723882232140,-348.26422483,0.0001048,2]
[335131541,1723882232158,-289.25,0.0001048,2]
[335131542,1723882232171,-467.22054761,0.0001048,2]
[335131543,1723882232183,-442.78390852,0.0001048,2]
[335131544,1723882232202,-606.15,0.0001048,2]
[335131545,1723882234012,517.37,9.615e-05,2]
[335131557,1723882237874,-5662.2090083,0.0001048,2]
[335131558,1723882237885,-1028.52477935,0.0001048,2]
[335131559,1723882237900,-666.77284336,0.0001048,2]
[335131560,1723882237911,-11554.30971465,0.0001048,2]
[335131561,1723882237930,-405.79384232,0.0001048,2]
[335131562,1723882237942,-4018.27120797,0.0001048,2]
[335131563,1723882237985,-932.0,0.0001048,2]
[335131564,1723882237997,-2602.07999994,0.0001048,2]
[335131565,1723882238042,-482.4499421,0.0001048,2]
[335131566,1723882238097,-1839.93992941,0.0001048,2]
[335131567,1723882238109,-1089.05208853,0.0001048,2]
[335131568,1723882238121,-70904.00698856,0.0001048,2]
[335131569,1723882238131,-3171.825,0.0001048,2]
[335131570,1723882238140,-1000.0,0.000105,2]
[335131571,1723882238150,-400.0,0.000105,3]
[335131572,1723882238159,-622.0,0.0001054,2]
[335131573,1723882238169,-1257.0,0.0001054,2]
[335131574,1723882238178,-556.0,0.0001054,2]
[335131576,1723882238186,-42.66801152,0.0001058,2]
[335131577,1723882238198,-108.33198848,0.0001058,2]
[335131578,1723882238207,-417.84560304,0.0001058,2]
[335131579,1723882238219,-375.01584486,0.0001058,2]
[335131580,1723882238237,-265.04621578,0.0001058,2]
[335131581,1723882238250,-445.42957939,0.0001058,2]
[335131588,1723882240279,-302.7105,0.0001058,2]
[335131647,1723882380560,153.84,8.219e-05,2]
[335131655,1723882609703,200.0,9.765e-05,2]
[335131659,1723882729423,586.1,9.772e-05,2]
[335131662,1723882953007,153.84,8.219e-05,2]
[335131663,1723882966355,155.0,9.943e-05,2]
[335131684,1723883280517,400.0,9.84e-05,2]
[335131760,1723883361788,1000.0,9.861e-05,2]
[335131766,1723883423558,153.84,8.219e-05,2]
[335131794,1723883432112,-300.0,0.00010572,2]
[335131797,1723883432122,-199.29,0.00010573,2]
[335131806,1723883432172,-1612.7618072,0.00010573,2]
[335131814,1723883432289,-495.74,0.00010573,2]
[335131815,1723883432350,-27.7642798,0.00010573,2]
[335131816,1723883432359,-6020.3267009,0.00010573,2]
[335131817,1723883432369,-2957.73144076,0.00010579,2]
[335131818,1723883432378,-5084.46530936,0.0001058,2]
[335131829,1723883438049,-10257.96125915,0.0001058,2]
[335131838,1723883438111,-510.87615512,0.0001058,2]
[335131840,1723883438172,-1792.855,0.0001058,2]
[335131841,1723883438184,-5209.75432339,0.0001058,2]
[335131842,1723883438235,-1939.19935657,0.0001058,2]
[335131843,1723883438357,-533.71605595,0.0001058,2]
[335131849,1723883440428,-557.38108761,0.0001058,2]
[335131850,1723883440488,-670.37,0.0001058,2]
[335131851,1723883440547,-389.44550813,0.0001058,2]
[335131852,1723883440610,-44608.60534472,0.0001058,2]
[335131853,1723883440620,-1000.0,0.0001058,2]
[335131854,1723883440630,-1000.0,0.0001058,2]
[335131855,1723883440639,-1000.0,0.0001058,2]
[335131856,1723883440651,-1000.0,0.0001058,2]
[335131857,1723883440660,-1000.0,0.0001058,2]
[335131858,1723883440670,-1000.0,0.0001058,2]
[335131859,1723883440679,-1000.0,0.0001058,2]
[335131860,1723883440688,-1000.0,0.0001058,2]
[335131861,1723883440697,-1000.0,0.0001058,2]
[335131862,1723883440706,-1000.0,0.0001058,2]
[335131863,1723883440716,-1000.0,0.0001058,2]
[335131864,1723883440725,-1000.0,0.0001058,2]
[335131866,1723883440735,-1000.0,0.0001058,2]
[335131868,1723883440744,-1000.0,0.0001058,2]
[335131870,1723883440754,-763.318094,0.0001058,2]
[335131872,1723883440763,-151.35904873,0.0001058,2]
[335131874,1723883440773,-200.0,0.0001058,2]
[335131876,1723883440782,-164.14081489,0.0001058,2]
[335131878,1723883440792,-6236.9355,0.0001058,2]
[335131880,1723883440801,-925.8168,0.0001058,2]